lending/lending_fUSD_20260310
["ID","MTS","AMOUNT","RATE_DAILY","PERIOD"]
[408114866,1773151833569,-629.54718477,0.00016999,2]
[408114867,1773151833579,-629.54718477,0.00016999,2]
[408114868,1773151833588,-631.12105275,0.00016999,2]
[408114869,1773151833598,-631.12105275,0.00016999,2]
[408114870,1773151833608,-631.12105275,0.00016999,2]
[408114871,1773151833616,-631.12105275,0.00016999,2]
[408114872,1773151833627,-631.12105275,0.00016999,2]
[408114873,1773151833636,-631.12105275,0.00016999,2]
[408114874,1773151833645,-631.12105275,0.00016999,2]
[408114875,1773151833655,-631.12105275,0.00016999,2]
[408114876,1773151833664,-631.12105275,0.00016999,2]
[408114877,1773151833673,-631.12105274,0.00016999,2]
[408114878,1773151833682,-37190.3303109,0.00017,2]
[408114879,1773151833698,-127834.91903939,0.00017,2]
[408114880,1773151833709,-8305.75708455,0.00017,2]
[408114881,1773151833720,-3904.47098206,0.00017,2]
[408114882,1773151833734,-603.84235597,0.00017,2]
[408114887,1773151838066,-500.0,0.00016774,2]
[408114888,1773151838076,-8153.20090444,0.00017,2]
[408114894,1773151840898,-369.0,0.00017,2]
[408114895,1773151840910,-406.675,0.00017,2]
[408114907,1773151843180,-190.41082,0.00017,2]
[408114918,1773151845903,-4781.90663245,0.00017,2]
[408114919,1773151845914,-303.8224965,0.00017,2]
[408114920,1773151845961,-441.84599516,0.00017,2]
[408114921,1773151846021,-13935.80000001,0.00017,2]
[408114924,1773151886410,285.22790797,0.00014157,2]
[408114928,1773152189498,285.22790796,0.00014157,2]
[408114929,1773152243350,500.0,9.157e-05,2]
[408114930,1773152281405,-150.0,0.00020209,120]
[408114931,1773152281429,-853.5,0.00020349,120]
[408114932,1773152360643,165.33244395,0.00014157,2]
[408114934,1773152404352,267.0,0.00014157,2]
[408114935,1773152411290,180.0,0.00019698,120]
[408114936,1773152419221,-146.5,0.00020349,120]
[408114937,1773152419243,-600.0,0.00020349,120]
[408114938,1773152419267,-360.0,0.00020349,120]
[408114939,1773152419291,-216.0,0.00020349,120]
[408114940,1773152419314,-189.0,0.000204,120]
[408114941,1773152419337,-150.0,0.00020509,120]
[408114942,1773152419363,-150.0,0.00020558,120]
[408114943,1773152419387,-180.0,0.00020683,120]
[408114944,1773152419410,-150.0,0.0002088,120]
[408114945,1773152419443,-150.0,0.00021124,120]
[408114946,1773152419465,-150.0,0.0002126,120]
[408114947,1773152419488,-1000.0,0.00021366,120]
[408114948,1773152419513,-600.0,0.00021366,120]
[408114949,1773152419536,-360.0,0.00021366,120]
[408114950,1773152419559,-216.0,0.00021366,120]
[408114951,1773152419584,-180.0,0.00021717,120]
[408114952,1773152419612,-189.0,0.00021744,120]
[408114953,1773152419634,-150.0,0.0002189,120]
[408114954,1773152419658,-150.0,0.00021995,120]
[408114955,1773152419685,-142.5,0.00022435,120]
[408114956,1773152429709,201.11,7.67e-05,2]
[408114957,1773152430210,201.11,8.074e-05,2]
[408114958,1773152430432,201.11,8.478e-05,2]
[408114959,1773152430643,201.11,8.881e-05,2]
[408114960,1773152430845,201.11,9.285e-05,2]
[408114961,1773152431742,201.11,9.689e-05,2]
[408114962,1773152431803,201.11,0.00010093,2]
[408114963,1773152431863,201.11,0.00010496,2]
[408114964,1773152431943,201.11,0.000109,2]
[408114965,1773152432015,201.11,0.00011304,2]
[408114966,1773152432283,201.11,0.00011707,2]
[408114967,1773152432534,201.11,0.00012111,2]
[408114968,1773152432708,201.11,0.00012515,2]
[408114969,1773152432931,201.11,0.00012918,2]
[408114970,1773152433225,201.11,0.00013322,2]
[408114971,1773152433461,201.11,0.00013726,2]
[408114972,1773152433712,201.11,0.0001413,2]
[408114976,1773152493479,987.513373,0.00014086,2]
[408114977,1773152530772,500.0,0.00014157,2]
[408114979,1773152536161,718.4,9.157e-05,2]
[408114980,1773152536670,500.0,9.157e-05,2]
[408114981,1773152536723,500.0,9.157e-05,2]
[408114982,1773152724454,716.46,0.00019,120]
[408114983,1773152733956,500.0,0.00014157,2]
[408114986,1773152842061,500.0,9.157e-05,2]
[408114987,1773152847491,700.0,9.157e-05,2]
[408114988,1773152850443,457.66627509,0.00014157,2]
[408114989,1773152850466,546.60372491,0.00014157,2]
[408114990,1773152865748,1506.41,0.00014157,2]
[408114991,1773152888766,166.66,0.00013952,2]
[408114993,1773153004678,267.0,0.00014157,2]
[408114994,1773153032018,-157.0,0.00014157,2]
[408114995,1773153032027,-162.0,0.00014157,2]
[408114996,1773153032036,-600.0,0.0001417,2]
[408114997,1773153032045,-250.0,0.00014183,2]
[408114998,1773153032055,-166.66,0.00014246,2]
[408114999,1773153032065,-150.0,0.00014246,2]
[408115000,1773153032074,-600.0,0.00014284,2]
[408115001,1773153032083,-387.23306983,0.00014284,2]
[408115002,1773153032095,-212.76693017,0.00014284,2]
[408115003,1773153032106,-313.72478406,0.000143,2]
[408115004,1773153032116,-201.11,0.00014533,2]
[408115005,1773153032127,-150.0,0.0001454,14]
[408115006,1773153032136,-166.66,0.0001454,2]
[408115007,1773153032146,-527.70245206,0.00014573,2]
[408115008,1773153032159,-601.2627983,0.00014573,2]
[408115009,1773153032169,-1109.24731293,0.00014573,2]
[408115010,1773153032180,-2354.42718517,0.00014573,2]
[408115011,1773153032192,-425.68025154,0.00014573,2]
[408115012,1773153032202,-261.31974846,0.00014581,2]
[408115013,1773153032226,-7388.96015845,0.00014581,2]
[408115014,1773153032238,-856.27009309,0.00014581,2]
[408115015,1773153032248,-300.0,0.00014625,2]
[408115016,1773153032257,-182.0,0.00014625,2]
[408115018,1773153032266,-1200.0,0.00014625,2]
[408115020,1773153032275,-300.0,0.00014625,2]
[408115022,1773153032284,-3526.95,0.00014626,2]
[408115024,1773153032293,-289.0,0.00014656,2]
[408115026,1773153032302,-1391.32517316,0.00014658,2]
[408115029,1773153032317,-1490.68613834,0.00014658,2]
[408115031,1773153032326,-7099.85333629,0.00014658,2]
[408115033,1773153032335,-11981.17423727,0.00014764,2]
[408115035,1773153032344,-4000.0,0.00014791,2]
[408115037,1773153032353,-166.66,0.00014834,2]
[408115038,1773153032362,-150.0,0.00014863,2]
[408115040,1773153032371,-14674.4496734,0.00014864,2]
[408115043,1773153032381,-201.11,0.00014937,2]
[408115044,1773153032390,-15535.53738587,0.00014964,2]
[408115047,1773153032399,-250.0,0.00015,2]
[408115050,1773153032409,-500.0,0.00015,2]
[408115051,1773153032418,-500.0,0.00015,30]
[408115054,1773153032427,-500.0,0.00015,30]
[408115056,1773153032435,-500.0,0.00015,30]
[408115058,1773153032444,-974.75005335,0.00015,30]
[408115060,1773153032453,-500.0,0.00015,30]
[408115063,1773153032463,-500.0,0.00015,30]
[408115066,1773153032471,-500.0,0.00015,30]
[408115069,1773153032480,-500.0,0.00015,30]
[408115072,1773153032490,-500.0,0.00015,30]
[408115074,1773153032499,-500.0,0.00015,30]
[408115076,1773153032507,-500.0,0.00015,30]
[408115078,1773153032516,-500.0,0.00015,30]
[408115080,1773153032526,-500.0,0.00015,30]
[408115082,1773153032535,-166.66,0.00015127,2]
[408115084,1773153032544,-4000.0,0.0001516,2]
[408115085,1773153032553,-201.11,0.00015341,2]
[408115087,1773153032562,-166.66,0.00015421,2]
[408115089,1773153032571,-500.0,0.00015468,2]
[408115091,1773153032580,-4000.0,0.0001553,2]
[408115093,1773153032589,-500.0,0.0001553,2]
[408115094,1773153032599,-250.0,0.00015573,2]
[408115095,1773153032608,-381.28444093,0.00015573,2]
[408115096,1773153032617,-193.0,0.00015573,2]
[408115097,1773153032626,-600.0,0.00015573,2]
[408115098,1773153032635,-500.0,0.00015804,2]
[408115099,1773153032645,-1852.42,0.00015846,2]
[408115100,1773153032655,-4000.0,0.000159,2]
[408115101,1773153032664,-255.0,0.00015993,2]
[408115102,1773153032674,-420.0,0.00016012,2]
[408115103,1773153032683,-300.0,0.00016012,2]
[408115104,1773153032694,-1680.0,0.00016087,2]
[408115105,1773153032705,-299.25807466,0.000161,2]
[408115106,1773153032715,-4838.77113528,0.000161,2]
[408115107,1773153032723,-25589.7,0.00016101,2]
[408115108,1773153032732,-8001.64103733,0.00016171,2]
[408115109,1773153032742,-3171.64599934,0.00016172,2]
[408115110,1773153032752,-2500.0,0.00016172,2]
[408115111,1773153032762,-4863.77,0.00016253,2]
[408115112,1773153032772,-180.56250001,0.00016262,2]
[408115113,1773153032782,-4000.0,0.0001627,2]
[408115114,1773153032791,-500.0,0.00016271,2]
[408115115,1773153032800,-619.28774558,0.00016271,2]
[408115116,1773153032809,-272.55,0.00016271,2]
[408115117,1773153032820,-500.0,0.00016271,2]
[408115118,1773153032832,-366.99042877,0.00016271,2]
[408115119,1773153032842,-611.87033338,0.00016271,2]
[408115120,1773153032851,-500.0,0.00016271,2]
[408115121,1773153032861,-500.0,0.00016271,2]
[408115122,1773153032870,-500.0,0.00016271,2]
[408115123,1773153032879,-500.0,0.00016271,2]
[408115124,1773153032888,-368.27840775,0.00016271,2]
[408115125,1773153032897,-145671.88232039,0.00016272,2]
[408115126,1773153032910,-10310.16011475,0.00016272,2]
[408115127,1773153032921,-16448.99360319,0.00016272,2]
[408115128,1773153032932,-590.98712022,0.00016272,2]
[408115129,1773153032943,-2815.94946393,0.00016272,2]
[408115130,1773153033232,-3477.90574294,0.00016272,2]
[408115131,1773153033243,-6127.228,0.00016272,2]
[408115132,1773153033265,-2276.75946275,0.00016272,2]
[408115137,1773153038229,195.528332,0.00013895,7]
[408115138,1773153038251,-760.57119005,0.0001625,2]
[408115139,1773153038285,-1239.42880995,0.0001625,2]
[408115140,1773153038294,-868296.52176754,0.00016272,2]
[408115149,1773153040520,-889.80138062,0.00016272,2]
[408115150,1773153040532,-874335.90705186,0.00016272,2]
[408115151,1773153040601,-1477.25824457,0.00016272,2]
[408115152,1773153040783,-665.0,0.00016272,2]
[408115167,1773153043351,-733.89557115,0.0001627,2]
[408115168,1773153043365,-313.28508464,0.0001627,2]
[408115169,1773153043378,-300.36223533,0.0001627,2]
[408115185,1773153046369,-120.24825118,0.0001627,2]
[408115187,1773153046380,-733.89557115,0.0001627,2]
[408115189,1773153046391,-193.45081667,0.0001627,2]
[408115191,1773153046433,-540.44475448,0.0001627,2]
[408115192,1773153046443,-601.96598408,0.0001627,2]
[408115193,1773153046480,-131.92958707,0.0001627,2]
[408115194,1773153046491,-733.89557115,0.0001627,2]
[408115195,1773153046502,-733.89557115,0.0001627,2]
[408115196,1773153046513,-717.61364432,0.0001627,2]
[408115197,1773153046527,-16.28192683,0.0001627,2]
[408115198,1773153046537,-733.89557115,0.0001627,2]
[408115199,1773153046549,-391.57789427,0.0001627,2]
[408115200,1773153142625,554.59287435,9.157e-05,2]
[408115201,1773153149391,500.0,9.157e-05,2]
[408115202,1773153149937,506.34201881,9.157e-05,2]
[408115203,1773153150640,500.0,9.157e-05,2]
[408115204,1773153188081,1337.661674,7.945e-05,2]
[408115205,1773153254063,-157.0,0.00014157,2]
[408115206,1773153254087,-2343.0,0.000142,2]
[408115207,1773153258677,2714.84,0.00012925,2]
[408115209,1773153305367,157.0,0.00014157,2]
[408115210,1773153307211,185.0,0.00014157,2]
[408115211,1773153368618,157.0,0.00014157,2]
[408115212,1773153609034,184.0,0.00014157,2]
[408115213,1773153656783,7320.0,0.00014157,2]
[408115214,1773153697151,153.42,0.00014157,2]
[408115215,1773153795129,154.49,0.00011793,2]
[408115333,1773153977847,-185.0,0.00014157,2]
[408115334,1773153977873,-4815.0,0.00014179,2]
[408115439,1773154232143,-185.0,0.00014179,2]
[408115440,1773154232159,-267.0,0.00014179,2]
[408115441,1773154232171,-250.0,0.00014189,2]
[408115442,1773154232186,-250.0,0.00014215,2]
[408115443,1773154232197,-228.034503,0.00014247,7]
[408115444,1773154232209,-300.0,0.00014591,2]
[408115445,1773154232222,-300.0,0.00014591,2]
[408115446,1773154232234,-1200.0,0.00014591,2]
[408115447,1773154232245,-2589.8267207,0.00014592,2]
[408115448,1773154232299,-16580.6032793,0.00014592,2]
[408115449,1773154232309,-261.21939218,0.00014615,2]
[408115450,1773154232327,-176.027717,0.0001462,7]
[408115451,1773154232337,-151.0,0.00014634,2]
[408115452,1773154232348,-1600.0,0.00014674,2]
[408115453,1773154232360,-150.0,0.00014715,2]
[408115454,1773154232371,-200.0,0.00014728,2]
[408115455,1773154232383,-500.0,0.00014932,2]
[408115456,1773154232394,-1507.0,0.00014953,2]
[408115457,1773154232406,-150.0,0.00014976,2]
[408115459,1773154232417,-999.63702856,0.00014983,2]
[408115461,1773154232428,-273.0,0.00014998,2]
[408115463,1773154232438,-300.0,0.00014998,2]
[408115464,1773154232449,-500.0,0.00015,30]
[408115465,1773154232460,-500.0,0.00015,30]
[408115466,1773154232471,-500.0,0.00015,30]
[408115467,1773154232482,-500.0,0.00015,30]
[408115468,1773154232493,-500.0,0.00015,30]
[408115470,1773154232504,-261.21939217,0.00015293,2]
[408115472,1773154232514,-150.0,0.00015312,2]
[408115474,1773154232526,-583.0,0.00015316,2]
[408115476,1773154232536,-1126.84,0.00015389,2]
[408115478,1773154232547,-310.0,0.00015478,2]
[408115479,1773154232558,-5000.0,0.00015573,2]
[408115480,1773154232568,-2000.0,0.00015576,2]
[408115481,1773154232579,-300.0,0.00015576,2]
[408115482,1773154232591,-250.0,0.00015596,2]
[408115483,1773154232603,-600.0,0.00015596,2]
[408115484,1773154232614,-500.0,0.00015596,2]
[408115485,1773154232624,-431.06188293,0.00015596,2]
[408115486,1773154232635,-500.0,0.00015611,2]
[408115487,1773154232645,-500.0,0.00015611,2]
[408115488,1773154232658,-500.0,0.00015611,2]
[408115489,1773154232669,-500.0,0.00015611,2]
[408115490,1773154232680,-500.0,0.00015611,2]
[408115491,1773154232691,-500.0,0.00015611,2]
[408115492,1773154232702,-500.0,0.00015611,2]
[408115493,1773154232713,-200.0,0.00015611,2]
[408115494,1773154232724,-500.0,0.00015611,2]
[408115495,1773154232735,-500.0,0.00015611,2]
[408115496,1773154232746,-500.0,0.00015611,2]
[408115497,1773154232756,-500.0,0.00015611,2]
[408115498,1773154232767,-151.0,0.00015611,2]
[408115499,1773154232778,-500.0,0.00015611,2]
[408115500,1773154232789,-500.0,0.00015611,2]
[408115501,1773154232800,-151.0,0.00015611,2]
[408115502,1773154232811,-151.0,0.00015611,2]
[408115503,1773154232821,-151.0,0.00015611,2]
[408115504,1773154232832,-151.0,0.00015611,2]
[408115505,1773154232843,-151.0,0.00015611,2]
[408115506,1773154232854,-151.0,0.00015611,2]
[408115507,1773154232865,-151.0,0.00015611,2]
[408115508,1773154232875,-151.0,0.00015611,2]
[408115509,1773154232887,-151.0,0.00015611,2]
[408115510,1773154232901,-151.0,0.00015611,2]
[408115511,1773154232912,-151.0,0.00015611,2]
[408115512,1773154232922,-151.50524412,0.00015611,2]
[408115513,1773154232933,-151.0,0.00015611,2]
[408115514,1773154232944,-151.0,0.00015611,2]
[408115515,1773154232954,-151.0,0.00015611,2]
[408115516,1773154232965,-151.0,0.00015611,2]
[408115517,1773154232976,-151.0,0.00015611,2]
[408115518,1773154232986,-154.10952011,0.00015611,2]
[408115519,1773154232997,-500.0,0.0001562,2]
[408115520,1773154233008,-1755.11,0.00015713,2]
[408115521,1773154233019,-153.75048617,0.00015886,2]
[408115522,1773154233029,-220.89067282,0.00015886,2]
[408115523,1773154233040,-150.0,0.00015895,2]
[408115524,1773154233051,-500.0,0.00015895,2]
[408115525,1773154233063,-500.0,0.00015895,2]
[408115526,1773154233074,-150.0,0.00015895,2]
[408115527,1773154233085,-4792.4572505,0.000159,2]
[408115528,1773154233100,-200.0,0.000159,2]
[408115529,1773154233110,-150.0,0.0001595,2]
[408115530,1773154233122,-509.41970448,0.0001595,2]
[408115531,1773154233137,-500.0,0.0001595,2]
[408115532,1773154233148,-152.49408871,0.0001595,2]
[408115533,1773154233160,-261.21939217,0.00015971,2]
[408115534,1773154233171,-217.0,0.00015976,2]
[408115535,1773154233183,-300.0,0.00015976,2]
[408115536,1773154233194,-201.77442938,0.00016005,2]
[408115537,1773154233205,-320.46936844,0.00016005,2]
[408115538,1773154233216,-1680.0,0.0001605,2]
[408115539,1773154233227,-1762.27514874,0.00016069,2]
[408115540,1773154233238,-7201.47693357,0.0001607,2]
[408115541,1773154233248,-2775.19024944,0.0001607,2]
[408115542,1773154233258,-2500.0,0.0001607,2]
[408115543,1773154233269,-364.37277021,0.00016071,2]
[408115544,1773154233279,-200.0,0.00016159,2]
[408115545,1773154233291,-180.56250001,0.0001616,2]
[408115546,1773154233301,-816.96,0.0001616,2]
[408115547,1773154233312,-816.96,0.0001616,2]
[408115548,1773154233323,-816.96,0.0001616,2]
[408115549,1773154233333,-816.96,0.0001616,2]
[408115550,1773154233352,-816.96,0.0001616,2]
[408115551,1773154233374,-478.11,0.00016169,2]
[408115552,1773154233386,-500.0,0.00016169,2]
[408115553,1773154233397,-500.0,0.00016169,2]
[408115554,1773154233409,-500.0,0.00016169,2]
[408115555,1773154233419,-500.0,0.00016169,2]
[408115556,1773154233430,-500.0,0.00016169,2]
[408115557,1773154233440,-500.0,0.00016169,2]
[408115558,1773154233451,-196.82,0.00016169,2]
[408115559,1773154233461,-965.47,0.00016169,2]
[408115560,1773154233472,-965.47,0.00016169,2]
[408115561,1773154233483,-965.47,0.00016169,2]
[408115562,1773154233494,-965.47,0.00016169,2]
[408115563,1773154233505,-965.47,0.00016169,2]
[408115564,1773154233516,-965.47,0.00016169,2]
[408115565,1773154233527,-965.47,0.00016169,2]
[408115566,1773154233537,-965.47,0.00016169,2]
[408115567,1773154233548,-965.47,0.00016169,2]
[408115568,1773154233560,-965.47,0.00016169,2]
[408115569,1773154233573,-965.47,0.00016169,2]
[408115570,1773154233584,-965.47,0.00016169,2]
[408115571,1773154233595,-965.47,0.00016169,2]
[408115572,1773154233607,-965.47,0.00016169,2]
[408115573,1773154233617,-500.0,0.00016169,2]
[408115574,1773154233628,-500.0,0.00016169,2]
[408115575,1773154233638,-428.30923336,0.00016169,2]
[408115576,1773154233651,-500.0,0.00016169,2]
[408115577,1773154233662,-500.0,0.00016169,2]
[408115578,1773154233672,-500.0,0.00016169,2]
[408115579,1773154233683,-218.43608279,0.00016169,2]
[408115580,1773154233694,-500.0,0.00016169,2]
[408115581,1773154233704,-500.0,0.00016169,2]
[408115582,1773154233715,-500.0,0.00016169,2]
[408115583,1773154233725,-500.0,0.00016169,2]
[408115584,1773154233736,-500.0,0.00016169,2]
[408115585,1773154233747,-500.0,0.00016169,2]
[408115586,1773154233758,-500.0,0.00016169,2]
[408115587,1773154233768,-500.0,0.00016169,2]
[408115588,1773154233779,-500.0,0.00016169,2]
[408115589,1773154233790,-500.0,0.00016169,2]
[408115590,1773154233800,-500.0,0.00016169,2]
[408115591,1773154233811,-500.0,0.00016169,2]
[408115592,1773154233822,-500.0,0.00016169,2]
[408115593,1773154233837,-500.0,0.00016169,2]
[408115594,1773154233848,-500.0,0.00016169,2]
[408115595,1773154233858,-500.0,0.00016169,2]
[408115596,1773154233869,-500.0,0.00016169,2]
[408115597,1773154233879,-275.84072578,0.00016169,2]
[408115598,1773154233890,-364.86483639,0.00016169,2]
[408115599,1773154233901,-500.0,0.00016169,2]
[408115600,1773154233912,-648.84630767,0.00016169,2]
[408115601,1773154233922,-500.0,0.00016169,2]
[408115602,1773154233933,-452.96040997,0.00016169,2]
[408115603,1773154233952,-500.0,0.00016169,2]
[408115604,1773154233965,-500.0,0.00016169,2]
[408115605,1773154233977,-363.79317763,0.00016169,2]
[408115606,1773154233988,-843.22832492,0.00016169,2]
[408115607,1773154234000,-843.22832492,0.00016169,2]
[408115608,1773154234012,-843.22832492,0.00016169,2]
[408115609,1773154234024,-843.22832492,0.00016169,2]
[408115610,1773154234036,-843.22832492,0.00016169,2]
[408115611,1773154234050,-843.22832492,0.00016169,2]
[408115612,1773154234062,-843.22832492,0.00016169,2]
[408115613,1773154234075,-843.22832492,0.00016169,2]
[408115614,1773154234087,-843.22832492,0.00016169,2]
[408115615,1773154234100,-843.22832492,0.00016169,2]
[408115616,1773154234111,-843.22832492,0.00016169,2]
[408115617,1773154234954,-843.22832492,0.00016169,2]
[408115618,1773154234985,-843.22832492,0.00016169,2]
[408115619,1773154235015,-843.22832492,0.00016169,2]
[408115620,1773154235030,-843.22832492,0.00016169,2]
[408115621,1773154235040,-843.22832492,0.00016169,2]
[408115622,1773154235050,-843.22832492,0.00016169,2]
[408115623,1773154235059,-843.22832492,0.00016169,2]
[408115624,1773154235068,-843.22832492,0.00016169,2]
[408115625,1773154235077,-843.22832492,0.00016169,2]
[408115626,1773154235087,-843.22832492,0.00016169,2]
[408115627,1773154235097,-640.92011475,0.00016169,2]
[408115628,1773154235112,-202.30821017,0.00016169,2]
[408115629,1773154235121,-843.22832492,0.00016169,2]
[408115630,1773154235133,-843.22832492,0.00016169,2]
[408115631,1773154235143,-843.22832492,0.00016169,2]
[408115632,1773154235157,-843.22832492,0.00016169,2]
[408115633,1773154235167,-843.22832492,0.00016169,2]
[408115634,1773154235180,-843.22832492,0.00016169,2]
[408115635,1773154235190,-843.22832492,0.00016169,2]
[408115636,1773154235199,-843.22832492,0.00016169,2]
[408115637,1773154235212,-843.22832492,0.00016169,2]
[408115638,1773154235222,-843.22832492,0.00016169,2]
[408115639,1773154235232,-843.22832492,0.00016169,2]
[408115640,1773154235241,-843.22832492,0.00016169,2]
[408115641,1773154235252,-843.22832492,0.00016169,2]
[408115642,1773154235262,-843.22832492,0.00016169,2]
[408115643,1773154235272,-843.22832492,0.00016169,2]
[408115644,1773154235282,-843.22832492,0.00016169,2]
[408115645,1773154235292,-843.22832492,0.00016169,2]
[408115646,1773154235302,-843.22832492,0.00016169,2]
[408115647,1773154235312,-843.22832492,0.00016169,2]
[408115648,1773154235322,-564.30928645,0.00016169,2]
[408115649,1773154235334,-278.91903847,0.00016169,2]
[408115650,1773154235344,-500.0,0.00016169,2]
[408115651,1773154235353,-274.78970882,0.00016169,2]
[408115652,1773154235362,-833.36799371,0.00016169,2]
[408115653,1773154235372,-833.36799371,0.00016169,2]
[408115654,1773154235381,-833.36799371,0.00016169,2]
[408115655,1773154235391,-833.36799371,0.00016169,2]
[408115656,1773154235403,-833.36799371,0.00016169,2]
[408115657,1773154235413,-833.36799371,0.00016169,2]
[408115658,1773154235423,-833.36799371,0.00016169,2]
[408115659,1773154235432,-833.36799371,0.00016169,2]
[408115660,1773154235442,-833.36799371,0.00016169,2]
[408115661,1773154235451,-833.36799371,0.00016169,2]
[408115662,1773154235461,-833.36799371,0.00016169,2]
[408115663,1773154235471,-833.36799371,0.00016169,2]
[408115664,1773154235481,-833.36799371,0.00016169,2]
[408115665,1773154235491,-833.36799371,0.00016169,2]
[408115666,1773154235501,-833.36799371,0.00016169,2]
[408115667,1773154235513,-833.36799371,0.00016169,2]
[408115668,1773154235523,-421.72511504,0.00016169,2]
[408115669,1773154235541,-411.64287867,0.00016169,2]
[408115670,1773154235551,-833.36799371,0.00016169,2]
[408115671,1773154235561,-392.86288762,0.00016169,2]
[408115672,1773154235593,-440.50510609,0.00016169,2]
[408115673,1773154235603,-833.36799371,0.00016169,2]
[408115674,1773154235615,-833.36799371,0.00016169,2]
[408115675,1773154235625,-833.36799371,0.00016169,2]
[408115676,1773154235635,-833.36799371,0.00016169,2]
[408115677,1773154235645,-833.36799371,0.00016169,2]
[408115678,1773154235659,-833.36799371,0.00016169,2]
[408115679,1773154235668,-833.36799371,0.00016169,2]
[408115680,1773154235678,-833.36799371,0.00016169,2]
[408115681,1773154235687,-833.36799372,0.00016169,2]
[408115682,1773154235698,-833.36799372,0.00016169,2]
[408115683,1773154235708,-833.36799372,0.00016169,2]
[408115684,1773154235718,-833.36799371,0.00016169,2]
[408115685,1773154235728,-272.10414453,0.00016169,2]
[408115686,1773154235738,-54330.01559275,0.0001617,2]
[408115699,1773154238708,-467.67138008,0.00016071,2]
[408115700,1773154238718,-1646.46177992,0.0001617,2]
[408115701,1773154238773,-287.53490168,0.0001617,2]
[408115702,1773154238784,-904.00402461,0.0001617,2]
[408115703,1773154238794,-3212.01027,0.0001617,2]
[408115704,1773154238809,-4467.45,0.0001617,2]
[408115705,1773154238820,-68500.80999997,0.0001617,2]
[408115713,1773154240467,-413.736,0.0001617,2]
[408115714,1773154240482,-2512.3783548,0.0001617,2]
[408115715,1773154240501,-331.8154072,0.0001617,2]
[408115716,1773154240692,-485.91300001,0.0001617,2]
[408115717,1773154240703,-962.45604605,0.0001617,2]
[408115731,1773154245599,-40584.57756553,0.0001617,2]
[408115732,1773154245774,-1012.19947126,0.0001617,2]
[408115733,1773154245786,-2818.88970174,0.0001617,2]
[408115739,1773154246183,-20334.54452643,0.0001617,2]
[408115740,1773154246194,-705.3736754,0.0001617,2]
[408115741,1773154246205,-266.180693,0.0001617,2]
[408115742,1773154246252,-568.155,0.0001617,2]
[408115743,1773154246371,-2070.0,0.0001617,2]
[408115744,1773154246385,-5041.04082612,0.0001617,2]
[408115761,1773154793485,339.73105656,0.0001199,2]
[408115763,1773154837663,1510.482655,0.00014,2]
[408115765,1773154955839,8489.527345,9.5e-05,3]
[408115766,1773154955862,10000.01,9.5e-05,3]
[408115767,1773154955884,10000.01,9.5e-05,3]
[408115768,1773154955908,7334.78705986,9.5e-05,3]
[408115769,1773154964390,288.26100194,0.0001999,120]
[408115770,1773154987787,369.087774,7.945e-05,2]
[408115778,1773155205815,338.84,7.364e-05,2]
[408115779,1773155205860,338.84,7.752e-05,2]
[408115780,1773155205918,338.84,8.14e-05,2]
[408115781,1773155206105,338.84,8.527e-05,2]
[408115782,1773155206363,338.84,8.915e-05,2]
[408115783,1773155206573,338.84,9.303e-05,2]
[408115784,1773155206777,338.84,9.69e-05,2]
[408115785,1773155207011,338.84,0.00010078,2]